Cogmind - Beta 15 @@@ ROGUE MODE // 2025.09.12 @ 19:41:28 Player: Petvaria Result: Self-destructed Performance ------------- Evolutions (0) 0 Regions Visited (3) 600 Robots Destroyed (14) 70 Value Destroyed (461) 461 Prototype IDs (12) 240 Alien Tech Used (0) 0 Bonus (300) 300 TOTAL SCORE: 1671 Bonus ------- Registered with UFD 300 Cogmind --------- Core Integrity 64/250 Matter 290/300 Energy 250/250 System Corruption 0% Temperature Cool (0) Movement Rolling (110) Ox2 Location -8/Scraptown Parts ------- > --- POWER (1) -------- Ion Engine > --- PROPULSION (2) --- Aluminum Leg Wheel > --- UTILITY (2) ------ Small Storage Unit Medium Armor Plating > --- WEAPON (2) ------- Subdweller Machine Gun Grenade Launcher > --- INVENTORY (8) ---- Light Treads Light Treads Aluminum Leg EM Pulse Gun Assault Rifle Subdweller Machine Gun Light Cannon Peak State ------------ > --- POWER ------------ Subdweller Power Source > --- PROPULSION ------- Aluminum Leg Wheel > --- UTILITY ---------- Small Storage Unit Medium Armor Plating > --- WEAPON ----------- Subdweller Machine Gun Grenade Launcher > --- INVENTORY -------- Ion Engine Light Treads Aluminum Leg EM Pulse Gun Assault Rifle Subdweller Machine Gun Light Cannon [Rating: 10] Favorites ----------- Power Light Ion Engine Engine Light Ion Engine Propulsion Light Treads Treads Light Treads Leg Aluminum Leg Wheel Wheel Utility Small Storage Unit Storage Small Storage Unit Protection Light Armor Plating Weapon Assault Rifle Ballistic Gun Assault Rifle Ballistic Cannon Light Cannon Launcher Grenade Launcher Build | -11 -10 -10 -8 ------- Run | Yrd Mat Sub Scr Slots Evolved . | . . . . Power . | . . . . Propulsion . | . . . . Utility . | . . . . Weapon . | . . . . Parts Attached 19 | 6 7 3 3 Power 4 | 1 1 1 1 Engine 4 | 1 1 1 1 Core . | . . . . Reactor . | . . . . Propulsion 4 | 2 . 1 1 Treads 2 | 2 . . . Leg 1 | . . 1 . Wheel 1 | . . . 1 Hover . | . . . . Flight . | . . . . Utility 3 | 1 1 . 1 Device . | . . . . Storage 1 | 1 . . . Processor . | . . . . Hackware . | . . . . Protection 2 | . 1 . 1 Artifact . | . . . . Weapon 8 | 2 5 1 . Energy Gun . | . . . . Energy Cannon . | . . . . Ballistic Gun 5 | 2 2 1 . Ballistic Cannon 2 | . 2 . . Launcher 1 | . 1 . . Special Weapon . | . . . . Impact Weapon . | . . . . Slashing Weapon . | . . . . Piercing Weapon . | . . . . Special Melee Weapon . | . . . . Unidentified Prototypes . | . . . . Parts Lost 5 | . 1 4 . Power 2 | . 1 1 . Propulsion 1 | . . 1 . Utility 1 | . . 1 . Weapon 1 | . . 1 . Highest Loss Streak 4 | . 1 4 . To Critical Strikes . | . . . . Average Backups 7 | 3 7 7 7 Power . | . . 1 . Propulsion 2 | 2 3 2 2 Utility . | . . . . Weapon 3 | . 3 4 4 Tool/Special . | . . . . Unused Backups 5 | . 1 . 4 Power . | . . . . Propulsion 3 | . 1 . 2 Utility . | . . . . Weapon 2 | . . . 2 Tool/Special . | . . . . Average Slot Usage (%) 93 | . 90 91 96 Engine 12 | . 9 13 14 Treads 15 | . 27 22 . Leg 6 | . . 5 14 Wheel 5 | . . . 13 Storage 14 | . 14 14 14 Protection 9 | . 9 8 10 Ballistic Gun 17 | . 22 14 14 Ballistic Cannon 2 | . 2 9 . Launcher 7 | . 2 2 14 Peak Build Rating 10 | 6 7 8 10 Average Rating 7 | 4 6 7 9 On Entrance 5 | . 6 7 8 Naked Turns . | . . . . Heaviest Build 24 | 13 16 17 24 Greatest Support 40 | 40 40 40 10 Greatest Overweight (x) 3 | . 3 1 2 Average Overweight (x) 1 | . . . 1 Largest Inventory Capacity 8 | 8 8 8 8 Average Capacity 7 | 7 8 8 8 Most Carried 8 | 6 8 8 8 Average Carried 7 | 3 7 7 7 Final Capacity 8 | 8 8 8 8 Final Carried 8 | 6 8 7 7 Class Distribution -------------------- 100% | Mutant Dominant Class ---------------- Mutant | -10/Materials Mutant | -10/Subcaves Mutant | -8/Scraptown Resources | -11 -10 -10 -8 ----------- Run | Yrd Mat Sub Scr Matter Collected 921 | 226 389 149 157 Remotely . | . . . . Salvage Created 432 | . 373 59 . Parts 27 | . 22 5 . Haulers Intercepted . | . . . . Recyclers Shooed . | . . . . Parts Field Recycled . | . . . . Retrieved Matter . | . . . . Parts Self-Destructed 12 | . . 12 . Prevented . | . . . . Kills | -11 -10 -10 -8 ------- Run | Yrd Mat Sub Scr Combat Hostiles Destroyed 14 | . 11 3 . Guns 11 | . 9 2 . Cannons 3 | . 2 1 . Classes Destroyed 3 | . 2 1 . Swarmer 3 | . 3 . . Grunt 8 | . 8 . . Subdweller 3 | . . 3 . Best Kill Streak 2 | . 2 2 . Combat Bots Only 2 | . 2 2 . Max Kills in Single Turn 1 | . 1 1 . Gunslinging . | . . . . Exploded . | . . . . Melee . | . . . . Uniques/NPCs Destroyed . | . . . . Combat | -11 -10 -10 -8 -------- Run | Yrd Mat Sub Scr Hostile Shots Fired 82 | . 59 23 . Missed 18 | . 11 7 . Hits 64 | . 48 16 . Projectile 64 | . 48 16 . Critical Strikes 1 | . 1 . . Damage Taken 1033 | . 592 441 . Core 186 | . 37 149 . Absorbed by Shields . | . . . . Core Remaining (%) 100 | 100 . . . Volleys Fired 60 | . 43 17 . Largest 2 | . 2 2 . Hottest 60 | . 50 60 . Shots Fired 114 | . 84 30 . Gun 77 | . 64 13 . Cannon 33 | . 18 15 . Launcher 4 | . 2 2 . Special . | . . . . Kinetic 110 | . 82 28 . Thermal . | . . . . Explosive 4 | . 2 2 . Electromagnetic . | . . . . Robot Hit Streak 13 | . 13 9 . Robot Miss Streak 2 | . 2 1 . Penetration Max . | . . . . Secondary Targets 1 | . 1 . . Max Gunslinging Chain 1 | . 1 . . Shots Hit Robots 80 | . 62 18 . Core Hits 27 | . 21 6 . Critical Kills . | . . . . Critical Parts Destroyed . | . . . . Critical Strikes . | . . . . Melee Attacks . | . . . . Impact . | . . . . Slashing . | . . . . Piercing . | . . . . Sneak Attacks . | . . . . Combat Hostiles . | . . . . Follow-up Attacks . | . . . . Damage Inflicted 1126 | . 827 299 . Guns 768 | . 608 160 . Cannons 358 | . 219 139 . Explosions . | . . . . Melee . | . . . . Ramming . | . . . . Kinetic 1126 | . 827 299 . Thermal . | . . . . Explosive . | . . . . Electromagnetic . | . . . . Impact . | . . . . Slashing . | . . . . Piercing . | . . . . Highest Corruption 1 | . 1 1 . Average Corruption 1 | . 1 1 . Corruption Purged . | . . . . Corruption Blocked . | . . . . Effects 10 | . . 10 . Message Errors 1 | . . 1 . Matter Fused 4 | . . 4 . Heat Flow Errors 1 | . . 1 . Energy Discharges 1 | . . 1 . Data Loss (minor) 2 | . . 2 . Weapon Failures 1 | . . 1 . Overload Shots . | . . . . Overflow Damage 6 | . 6 . . Projectiles 6 | . 6 . . Explosions . | . . . . Melee . | . . . . Knockbacks 3 | . 2 1 . Impact . | . . . . Kinetic 3 | . 2 1 . Secondary . | . . . . Self-Inflicted Damage . | . . . . Shots . | . . . . Rammed . | . . . . Targets Rammed . | . . . . Kicked . | . . . . Crushed . | . . . . Highest Temperature 152 | . 28 152 . Average Temperature 17 | . 8 78 . Received Heat Transfer 324 | . 285 39 . Siege Activations . | . . . . Martial Activations . | . . . . Shielding Activations . | . . . . Robots Disrupted . | . . . . Combat Hostiles . | . . . . Robots Corrupted . | . . . . Combat Hostiles . | . . . . Parts Fried . | . . . . Impact Corruptions . | . . . . Robots Melted . | . . . . Combat Hostiles . | . . . . Parts Melted . | . . . . Heat Transferred . | . . . . Parts Sabotaged . | . . . . Parts Stolen . | . . . . Parts Stripped . | . . . . Power Chain Reactions . | . . . . Alert | -11 -10 -10 -8 ------- Run | Yrd Mat Sub Scr Maximum Alert Level . | . . . . Low Security (%) 100 | 100 100 . . Level 1 . | . . . . Level 2 . | . . . . Level 3 . | . . . . Level 4 . | . . . . Level 5 . | . . . . High Security . | . . . . Max Security . | . . . . Peak Influence 68 | . 68 . . Initial . | . . . . Average 12 | . 13 . . Influence Increases 298 | . 298 . . Destroy 0b10 Robot/C 220 | . 220 . . Destroy Leader 50 | . 50 . . Destroy Structure 13 | . 13 . . Lose Combat Pursuer 15 | . 15 . . Influence Decreases 298 | . 264 34 . Entered New Map 17 | . . 17 . Time Decay 271 | . 254 17 . Lost Part 10 | . 10 . . Squads Dispatched 1 | . 1 . . Investigation . | . . . . Extermination . | . . . . Reinforcement 1 | . 1 . . Assault . | . . . . Garrison . | . . . . Intercept . | . . . . Searches Triggered . | . . . . Construction Impeded . | . . . . Haulers Reinforced . | . . . . Active Scanning Responses . | . . . . Cargo Convoy Interrupts . | . . . . Stealth | -11 -10 -10 -8 --------- Run | Yrd Mat Sub Scr Distress Signals 2 | . 2 . . Communications Jammed . | . . . . Distress Signals . | . . . . Times Spotted 29 | . 25 4 . Peak Tracking Total 3 | . 3 2 . Tactical Retreats 1 | . 1 . . Traps | -11 -10 -10 -8 ------- Run | Yrd Mat Sub Scr Traps Triggered 5 | . 3 2 . Indirectly . | . . . . Trap Hack Attempts . | . . . . Triggered . | . . . . Disarmed . | . . . . Reprogrammed . | . . . . Reused . | . . . . Traps Extracted . | . . . . Installed . | . . . . Triggered . | . . . . Machines | -11 -10 -10 -8 ---------- Run | Yrd Mat Sub Scr Machines Disabled . | . . . . Max in Single Turn . | . . . . Machines Repaired . | . . . . Machines Dismantled . | . . . . Machines Sabotaged . | . . . . Overloaded Fab Kills . | . . . . Hacking | -11 -10 -10 -8 --------- Run | Yrd Mat Sub Scr Machines Accessed 3 | . . 1 2 Terminals . | . . . . Fabricators . | . . . . Repair Stations . | . . . . Recycling Units . | . . . . Scanalyzers . | . . . . Garrison Access . | . . . . Total Hacks 8 | . . 4 4 Successful 8 | . . 4 4 Failed . | . . . . Catastrophic . | . . . . Database Lockouts . | . . . . Manual . | . . . . Terminals . | . . . . Fabricators . | . . . . Repair Stations . | . . . . Recycling Units . | . . . . Scanalyzers . | . . . . Garrison Access . | . . . . Terminal Hacks 8 | . . 4 4 Record 7 | . . 4 3 Proto ID Catalog 1 | . . . 1 Fabricator Hacks . | . . . . Repair Station Hacks . | . . . . Recycling Unit Hacks . | . . . . Scanalyzer . | . . . . Garrison Access Hacks . | . . . . Unauthorized Hacks . | . . . . Terminals . | . . . . Fabricators . | . . . . Repair Stations . | . . . . Recycling Units . | . . . . Scanalyzers . | . . . . Garrison Access . | . . . . Data Cores Recovered . | . . . . Used . | . . . . Hacking Detections . | . . . . Full Trace Events . | . . . . Feedback Events . | . . . . Feedback Blocked . | . . . . Robot Schematics Acquired . | . . . . Robots Built . | . . . . Authchips . | . . . . Time . | . . . . Total Robot Build Rating . | . . . . Part Schematics Acquired . | . . . . Parts Built . | . . . . Authchips . | . . . . Time . | . . . . Total Part Build Rating . | . . . . Parts Repaired . | . . . . Time . | . . . . Parts Recycled . | . . . . Recycled Matter . | . . . . Retrieved Matter . | . . . . Retrieved Components . | . . . . Parts Scanalyzed . | . . . . Part Schematics Acquired . | . . . . Parts Damaged . | . . . . Bothacking | -11 -10 -10 -8 ------------ Run | Yrd Mat Sub Scr Used RIF Installer . | . . . . Robots Hacked . | . . . . Non-combat . | . . . . Combat . | . . . . Robot Hacks Applied . | . . . . Relay Couplers Released . | . . . . Fabnet Peak Effective % . | . . . . Robots Rewired . | . . . . Allies Hacked . | . . . . Hacks Repelled . | . . . . Allies | -11 -10 -10 -8 -------- Run | Yrd Mat Sub Scr Total Allies . | . . . . Largest Group . | . . . . Highest-Rated Group . | . . . . Highest-Rated Ally . | . . . . Total Orders . | . . . . Ally Attacks . | . . . . Total Damage . | . . . . Kills . | . . . . Allies Corrupted . | . . . . Allies Melted . | . . . . Intel | -11 -10 -10 -8 ------- Run | Yrd Mat Sub Scr Active Infowar (turns) . | . . . . Robot Analysis Total . | . . . . Derelict Logs Recovered 2 | . . . 2 Drone Launches . | . . . . Drone Recoveries . | . . . . Exploration | -11 -10 -10 -8 ------------- Run | Yrd Mat Sub Scr Turns Passed 3716 | 87 1418 689 1522 Spaces Moved 2485 | 47 702 318 1418 Core 11 | 10 1 . . Treads 920 | 37 701 182 . Legs 141 | . . 136 5 Wheels 1413 | . . . 1413 Hover . | . . . . Flight . | . . . . Fastest Speed 50 | 50 160 160 95 Average Speed 130 | 136 160 172 106 Slowest Speed 200 | 160 200 190 190 Overloaded Moves . | . . . . Propulsion Burnouts . | . . . . Robots Hopped . | . . . . Potential Cave-ins 1 | . . 1 . Cave-ins Triggered . | . . . . Exploration Rate (%) 53 | 4 92 23 94 Regions Visited 3 Branch Regions 2 Pre-discovered Areas . | . . . . Known Exits Taken . | . . . . Unknown Exits Taken 3 | 1 1 1 . Scrap Searched 6 | . . . 6 Spaces Dug . | . . . . Terrain Destroyed 27 | . 12 15 . Melee . | . . . . Projectile . | . . . . AOE 27 | . 12 15 . Terrain Rammed . | . . . . Walls Destroyed . | . . . . Machines Disabled . | . . . . Actions | -11 -10 -10 -8 --------- Run | Yrd Mat Sub Scr Total 2825 | 70 908 423 1424 Wait 222 | 6 136 80 . Move 2482 | 46 701 317 1418 Hop . | . . . . Pick Up 23 | 12 7 2 2 Fast Attach 6 | . 5 1 . Attach 12 | 6 3 2 1 Detach . | . . . . Swap 15 | . 10 3 2 Drop 5 | . 3 1 1 Fire 60 | . 43 17 . Melee . | . . . . Ram . | . . . . Kick . | . . . . Crush . | . . . . Escape Stasis . | . . . . Rewire . | . . . . Trap . | . . . . Miscellaneous . | . . . . Route ------- -11/Scrapyard -10/Materials (discovered 6 exits: [*Mat x3] / [*Min x2] / *Sub) -10/Subcaves (discovered 2 exits: [*Mat] / *Scr) -8/Scraptown (discovered 2 exits: [*Fac x2]) History --------- Turn | Location | Event 7 | -11/Scrapyard | Discovered new exit (range 16) 88 | -11/Scrapyard | Entered Materials 305 | -10/Materials | Discovered new exit (range 15) 318 | -10/Materials | Build established: Mutant 454 | -10/Materials | Discovered new exit (range 14) 576 | -10/Materials | Discovered new exit (range 14) 795 | -10/Materials | Discovered new exit (range 7) 995 | -10/Materials | Discovered new exit (range 13) 1491 | -10/Materials | Discovered new exit (range 9) 1506 | -10/Materials | Entered Subcaves 1507 | -10/Subcaves | Approached by a straggling Scientist 1632 | -10/Subcaves | Visited Clippyterm 1637 | -10/Subcaves | Learned 40 Factory zone layouts 1637 | -10/Subcaves | Learned Factory stockpile data 1700 | -10/Subcaves | Shifting Twisted Machinery released Piercing Trap 1701 | -10/Subcaves | Shifting Twisted Machinery released Sub. Optics 1835 | -10/Subcaves | Discovered new exit (range 10) 1938 | -10/Subcaves | Core integrity fell below 50% 1974 | -10/Subcaves | Lost 4 parts (1p1n1u1w) 1982 | -10/Subcaves | Scientist uncovered a shortcut to Scraptown 2050 | -10/Subcaves | A swath of the cavern ceiling suddenly collapsed 2195 | -10/Subcaves | Entered Scraptown 2195 | -8/Scraptown | System corruption cleaned by C-Scrubber 2456 | -8/Scraptown | Visited Comm Corps 2502 | -8/Scraptown | Visited Bundlers 2566 | -8/Scraptown | Visited SPCMW 2594 | -8/Scraptown | Visited Spacefarers 2844 | -8/Scraptown | Discovered new exit (range 3) 2870 | -8/Scraptown | Scanned Subdweller tech in exchange for log data 2875 | -8/Scraptown | Learned Research emergency access door positions 2900 | -8/Scraptown | Visited Awakened 2916 | -8/Scraptown | Visited Symbiants 2931 | -8/Scraptown | Visited Cyclists 3111 | -8/Scraptown | Visited UFD Registry 3111 | -8/Scraptown | Registered with UFD as "Chainbrain" 3135 | -8/Scraptown | Entered Cyclist Reading Room 3194 | -8/Scraptown | Visited Infowarlord's Domain 3212 | -8/Scraptown | Visited Scrapoid Research Area 3238 | -8/Scraptown | Visited Abandonware Association 3253 | -8/Scraptown | Learned abandonware demo "ERRANTS.EXE" 3388 | -8/Scraptown | Visited A0-MCA Data Center 3408 | -8/Scraptown | Visited Scrap Suit Storage 3432 | -8/Scraptown | Visited Science Guys 3533 | -8/Scraptown | Discovered new exit (range 3) 3566 | -8/Scraptown | Visited Observation Area 3611 | -8/Scraptown | Visited Chapter 10 3717 | -8/Scraptown | Self-destructed Last Messages --------------- Master Drone Bay Personal Teleporter v0.10 System Spiker Voltaic Drivehammer Thermal Lance Mindflail Acceleration Regulator Hcp. Trap Extractor Preattuning Coils Mak. Powered Armor Regenerative Guardplate Interdictor 741C Chamberscale Vortex Pulse Array Cloaking Wrap EXIT=FOUND LOCAL NARROWCAST: Observation Area. LOCAL NARROWCAST: Chapter 10. If you can't beat 'em, join 'em to beat 'em. LOCAL NARROWCAST: Closed for remodeling. Map ----- +----------------------------------------------------+ | ???? ???? #???# ""##" "???" "## #""!" | | ????? """ #???# ""##" "???" "## #"""" " | | ????? """ ????# """"##" "???" "## #"" "" | | ?#???" ????# " ""##" "???" "## # | | ?# """ "#???# """"##" """"" "## # " "" | | ?? "#???# ""##" "## #&" "" | | ???? #??### "##"" ## #" | | ??????"""""???# ## ## # | | ???????# #????###### ########### ##### ## ####### | | ???##### ########### ########### ##### ## ##????# | | ???#"""" """"""""""" """"""""""" """"" "" "#???# | | ???#" "#?? | | ???#" "#?? | | ???#" "#?" | | ???#" "##" | | ???#" " | | ??"" """""""""""""""""""""""""""" "##" | | """" """""""""""""""""""""""""""" "#?" | | ?""" ""###### ################"" "#?? # | | """" ""#? #?????????#"" "#??### | | """" ""# X"?????????#"" "#??#"" | | """" ""# "" "" #?????????#"" "#?? !! | | ??"" ""# "" "" X"???????###"" "#? | | ??"" ""#? " " #########E#"" "## | | ???#" "" "" r | | ???#" "" "" 3 @ r r "## | | ####" ""# " " ######### #"" "#? !! | | ""# "" "" ""???????###"" "#??#"" | | ""#? "" "" #?????????#"" "#???## | | ""#?? X"?????????#"" "#????? | | ""#?? #?????????#"" "#????? | | ""###### ################"" "###### | | """""""""""""""""""""""""""" "## """ | | """""""""""""""""""""""""""" ""! | | "## """ | | "## | | "## | | """#" ## " | | ???#" # """ | | ???#"""""" """"""""""" """"""""""" """""" ## """ | | ???####### ########### ########### ###### ##"""" | | ???????# #????# # #?# ###### | | ???????# #????#" # #?# #????? | | ???????#! !#????#" " # """"" #?# #????? | | ???????#! !#????#"" """# "###" #?# #????? | | ???????#! !#????# """# "#X#" #?# #????? | | ???????#! !#????# " """# "# #" #?# ###### | | ???????#! !#????#""" " # #?# | | ???????# #????#""" # " " " #?# | | ???????#######????#""" #"""""""""#?# | +----------------------------------------------------+ Best States ------------- Heat Dissipation 25 Energy Generation 15 Energy Capacity 250 Matter Stores 300 Matter Capacity 300 Sight Range 16 Terrain Scan Density 10 Armor Coverage 225 Evasion (%) 41 Recoil Reduction 2 Item Schematics ----------------- None Robot Schematics ------------------ None Fabricated ------------ Nothing Repaired ---------- Nothing Alien Tech Used ----------------- None Achievements -------------- None Challenges ------------ None Game ------ Seed DimensionalHeartLauncher Manual? 0 Play Time 00:17:55 Cumulative 201.1 hours Start 2025.09.12 @ 19:24:17 End 2025.09.12 @ 19:41:28 Sessions 1 Manual Loads 0 Difficulty Rogue Special Mode None Game No. 174 Rogue 174 Adventurer 0 Explorer 0 Win Type - Total 10 Types 4/0/2/2/1/0/0/0/0/1 Lore% 89 Gallery% 84 Achievement% 67 Wizard Run 0 Options --------- Layout 1 ASCII 0 Keyboard 0 Movement Numpad Keybinds 0 Fullscreen 1 Font 24/Proggy Map View 50x35 Zoom Use 0% Tactical HUD 0 Map Filters NONE Filters NONE Steam 1 RUN: 0188b356-02f6-4b23-b892-f4ca447220a6